Cogmind - Beta 13 @@@ ROGUE MODE // 2024.04.14 @ 16:34:23 Player: Millea Result: Destroyed by Y-54 Guardian with Gatling Laser Performance ------------- Evolutions (4) 2000 Regions Visited (15) 3000 Robots Destroyed (249) 1245 Value Destroyed (11615) 11615 Prototype IDs (32) 640 Alien Tech Used (0) 0 Bonus (6189) 6189 TOTAL SCORE: 24689 Bonus ------- High Alert Combat Kills 2630 Follower Combat Kills 259 Entered Garrisons 1000 Used RIF Installer 2000 Aligned with FarCom 300 Cogmind --------- Core Integrity 0/850 Matter 129/300 Energy 98/100 System Corruption 1% Temperature Hot (202) Movement Core (50) Location -6/Garrison Parts ------- > --- POWER (1) -------- (None) > --- PROPULSION (2) --- (None) > --- UTILITY (8) ------ (None) > --- WEAPON (4) ------- (None) > --- INVENTORY (5) ---- Target Analyzer Improved Weapon Cycler Improved Focal Shield Relay Coupler [Swarmer] (41) Heavy Laser Peak State ------------ > --- POWER ------------ Reinforced Deuterium Engine > --- PROPULSION ------- Armored Medium Treads Armored Medium Treads > --- UTILITY ---------- Advanced Heat Sink Coolant Injector Cargo Storage Unit Advanced Target Analyzer Improved Weapon Cycler Improved Light Armor Plating Graphene Brace > --- WEAPON ----------- Dispersion Rifle Dispersion Rifle Dispersion Rifle KE Penetrator > --- INVENTORY -------- Improved Medium Treads Advanced Heat Sink Improved Cooling System Advanced Target Analyzer Improved Weapon Cycler Improved Weapon Cycler Improved Focal Shield Improved Focal Shield Improved Focal Shield Improved Focal Shield Relay Coupler [Swarmer] Relay Coupler [Sentry] System Restoration Module Gatling Laser Heavy Plasma Cannon Gauss Rifle Flak Gun Improved Light Cannon Hardcell Cannon Hardcell Cannon Hardcell Cannon Improved Remote Datajack Longsword +1 [Rating: 89] Favorites ----------- Power Enhanced Nuclear Core Engine Heavy Deuterium Engine Power Core Enhanced Nuclear Core Propulsion Light Treads Treads Light Treads Wheel Wheel Hover Unit Improved Hover Unit Flight Unit Improved VTOL Module Utility Improved Cooling System Device Improved Cooling System Storage Cargo Storage Unit Processor Targeting Computer Hackware Relay Coupler [NC] Protection Layered Heavy Armor Plating Weapon Improved EM Pulse Cannon Energy Gun Gatling Laser Energy Cannon Improved EM Pulse Cannon Ballistic Gun Improved Assault Rifle Ballistic Cannon Hardcell Cannon Launcher Heavy Rocket Launcher Slashing Weapon Longsword +1 Build | -11 -10 -10 -10 -9 -8 -8 -8 -8 -7 -7 -7 -6 -6 -6 -6 ------- Run | Yrd Mat Min Exi Min Mat Gar Mat Gar Fac Gar Fac Fac Gar Fac Gar Slots Evolved 8 | . . . . . 4 . . . 2 . . 2 . . . Power . | . . . . . . . . . . . . . . . . Propulsion . | . . . . . . . . . . . . . . . . Utility 6 | . . . . . 2 . . . 2 . . 2 . . . Weapon 2 | . . . . . 2 . . . . . . . . . . Parts Attached 201 | 5 3 1 . 4 38 15 12 14 7 4 38 15 28 . 17 Power 14 | 1 . 1 . . 5 . . 1 . . 2 1 1 . 2 Engine 8 | 1 . 1 . . 1 . . . . . 2 . 1 . 2 Core 6 | . . . . . 4 . . 1 . . . 1 . . . Reactor . | . . . . . . . . . . . . . . . . Propulsion 36 | 1 1 . . 1 13 3 4 4 . 1 2 1 4 . 1 Treads 30 | 1 1 . . . 8 3 4 4 . 1 2 1 4 . 1 Leg . | . . . . . . . . . . . . . . . . Wheel 2 | . . . . . 2 . . . . . . . . . . Hover 2 | . . . . 1 1 . . . . . . . . . . Flight 2 | . . . . . 2 . . . . . . . . . . Utility 64 | 1 2 . . 3 8 4 7 2 7 1 10 4 10 . 5 Device 32 | . 1 . . 1 3 1 5 2 4 . 7 2 2 . 4 Storage 5 | 1 . . . . 1 . . . . 1 1 . 1 . . Processor 8 | . 1 . . 1 3 . . . . . 1 . 1 . 1 Hackware 2 | . . . . . . . . . 2 . . . . . . Protection 17 | . . . . 1 1 3 2 . 1 . 1 2 6 . . Artifact . | . . . . . . . . . . . . . . . . Weapon 87 | 2 . . . . 12 8 1 7 . 2 24 9 13 . 9 Energy Gun 23 | 1 . . . . . . . . . 1 9 3 6 . 3 Energy Cannon 16 | . . . . . . . . 4 . 1 9 1 . . 1 Ballistic Gun 26 | 1 . . . . 11 6 1 1 . . . . 5 . 1 Ballistic Cannon 7 | . . . . . . . . 1 . . . . 2 . 4 Launcher 6 | . . . . . . . . . . . 3 3 . . . Special Weapon . | . . . . . . . . . . . . . . . . Impact Weapon . | . . . . . . . . . . . . . . . . Slashing Weapon 9 | . . . . . 1 2 . 1 . . 3 2 . . . Piercing Weapon . | . . . . . . . . . . . . . . . . Special Melee Weapon . | . . . . . . . . . . . . . . . . Unidentified Prototypes 7 | . . . . 1 4 . . . . . 2 . . . . Corrupted Parts 1 | . . . . . . . . 1 . . . . . . . System Corruption 4 | . . . . . . . . 4 . . . . . . . Parts Lost 76 | . . 1 5 . 5 5 . . 1 3 14 11 16 . 15 Power 7 | . . . 1 . 1 . . . . . 1 1 1 . 2 Propulsion 10 | . . 1 1 . 1 . . . . . 1 1 2 . 3 Utility 22 | . . . 1 . 1 3 . . . . 4 3 6 . 4 Weapon 37 | . . . 2 . 2 2 . . 1 3 8 6 7 . 6 Highest Loss Streak 7 | . . 1 5 . 3 5 . . 1 2 5 3 7 . 6 To Critical Strikes . | . . . . . . . . . . . . . . . . Average Slot Usage (%) 84 | . 83 94 84 28 90 95 89 90 86 69 83 74 86 93 83 Engine 3 | . 14 14 14 . . . . . . . 6 1 4 6 4 Core 4 | . . . . . 6 9 9 9 7 7 . 4 1 . . Treads 11 | . 15 23 14 . 14 17 18 18 15 10 7 6 10 13 10 Device 17 | . 7 . . 2 14 10 8 9 14 15 23 22 28 33 26 Storage 8 | . 14 14 14 . 6 9 9 9 7 7 8 6 6 6 5 Processor 2 | . 2 14 14 9 12 . . . . . . . 2 6 9 Hackware 1 | . . . . . . . . . 7 7 3 . . . . Protection 4 | . . . . 4 . 11 8 9 7 4 1 10 4 . . Energy Gun 6 | . 14 14 13 . . . . . . 4 11 4 4 6 13 Energy Cannon 7 | . . . . . . . . 10 23 10 12 2 3 . 3 Ballistic Gun 11 | . 14 14 13 . 30 31 36 23 2 . . . 9 20 2 Launcher 1 | . . . . . . . . . . . 1 10 2 . . Slashing Weapon 1 | . . . . . 1 4 . . . . 2 3 3 . . Naked Turns 21 | . . . 4 12 . . . . . . . . . . 5 Heaviest Build 206 | 14 15 14 14 7 38 51 51 70 72 163 182 206 196 178 190 Greatest Support 75 | 20 40 40 20 7 40 40 40 60 57 75 75 75 75 47 47 Greatest Overweight (x) 59 | . . . . . 4 1 1 3 1 2 2 2 3 3 59 Average Overweight (x) 1 | . . . . . . . 1 1 1 1 2 2 2 3 4 Largest Inventory Capacity 30 | 8 8 8 8 5 10 10 10 10 10 30 30 30 30 30 30 Average Capacity 20 | 7 8 8 7 5 8 10 10 10 10 18 30 30 30 30 29 Most Carried 30 | 3 7 8 8 5 10 10 10 10 10 30 30 27 30 30 30 Average Carried 18 | 2 4 7 7 5 8 9 9 9 9 16 29 23 25 30 28 Final Capacity 30 | 8 8 8 5 5 10 10 10 10 10 30 30 30 30 30 5 Final Carried 30 | 3 6 8 5 5 10 10 10 10 9 30 29 19 30 30 5 Class Distribution -------------------- 33% | Scavenger-Tank 24% | Hauler-Tank 9% | Tank 8% | Mutant 7% | Scavenger-Gunner 6% | Hauler-Mutant 4% | Gunner 3% | Scavenger-Mutant Dominant Class ---------------- Mutant | -10/Materials Mutant | -10/Mines Mutant | -10/Exiles Mutant | -9/Mines Gunner | -8/Materials Scavenger-Tank | -8/Garrison Tank | -8/Materials Scavenger-Tank | -8/Garrison Tank | -7/Factory Hauler-Mutant | -7/Garrison Hauler-Tank | -7/Factory Scavenger-Tank | -6/Factory Scavenger-Gunner | -6/Garrison Bothacker-Gunner | -6/Factory Scavenger-Gunner | -6/Garrison Resources | -11 -10 -10 -10 -9 -8 -8 -8 -8 -7 -7 -7 -6 -6 -6 -6 ----------- Run | Yrd Mat Min Exi Min Mat Gar Mat Gar Fac Gar Fac Fac Gar Fac Gar Matter Collected 5482 | 187 . 191 . 22 1062 421 524 865 63 54 575 363 964 . 191 Remotely 1020 | . . . . . 882 138 . . . . . . . . . Salvage Created 11397 | . . 208 . . 1729 653 616 819 158 1239 2887 1735 1025 . 328 Parts 527 | . . 8 . . 97 45 26 48 7 57 137 42 43 . 17 Haulers Intercepted 8 | . . . . . 4 . 2 . . . 1 1 . . . Recyclers Shooed 1 | . . . . . . . . . . . 1 . . . . Parts Field Recycled . | . . . . . . . . . . . . . . . . Retrieved Matter . | . . . . . . . . . . . . . . . . Parts Self-Destructed . | . . . . . . . . . . . . . . . . Prevented . | . . . . . . . . . . . . . . . . Kills | -11 -10 -10 -10 -9 -8 -8 -8 -8 -7 -7 -7 -6 -6 -6 -6 ------- Run | Yrd Mat Min Exi Min Mat Gar Mat Gar Fac Gar Fac Fac Gar Fac Gar Combat Hostiles Destroyed 203 | . . 7 . . 24 18 11 21 3 16 51 20 25 . 7 Melee 18 | . . . . . 3 2 . 1 . 1 4 2 5 . . Guns 111 | . . 7 . . 21 16 11 16 . . 24 . 13 . 3 Cannons 41 | . . . . . . . . 4 3 14 11 1 4 . 4 AOE 20 | . . . . . . . . . . 1 7 9 3 . . Classes Destroyed 19 | . . 2 . . 10 2 . 1 . . 4 . . . . Worker 7 | . . . . . 1 . 1 . . . 4 1 . . . Builder 4 | . . . . . 2 . . . . . 1 1 . . . Tunneler 3 | . . . . . 2 . . . . . 1 . . . . Hauler 8 | . . . . . 4 . 2 . . . 1 1 . . . Recycler 8 | . . . . . 2 . 1 . . . 3 2 . . . Mechanic 3 | . . . . . . . . . . . 2 1 . . . Operator 3 | . . . . . . . . . . . 2 1 . . . Watcher 12 | . . . . . 5 . 1 1 1 . 3 1 . . . Swarmer 26 | . . 3 . . 2 4 . 4 . 4 2 . 7 . . Cutter 10 | . . . . . . 2 . 2 . 3 . . 3 . . Grunt 94 | . . 4 . . 13 5 7 5 3 9 25 13 10 . . Brawler 13 | . . . . . 1 . 2 4 . . 4 1 1 . . Duelist 8 | . . . . . 1 . . 3 . . 1 1 2 . . Sentry 19 | . . . . . 4 5 2 2 . . 3 . 1 . 2 Specialist 2 | . . . . . . 1 . . . . 1 . . . . Hunter 13 | . . . . . 3 1 . . . . 3 3 . . 3 Programmer 13 | . . . . . . . . . . . 11 1 . . 1 Heavy 1 | . . . . . . . . . . . 1 . . . . Behemoth 4 | . . . . . . . . 1 . . . 1 1 . 1 Best Kill Streak 12 | . . 3 . . 5 5 4 3 2 4 8 5 12 . 2 Combat Bots Only 12 | . . 3 . . 5 5 4 3 2 4 5 4 12 . 2 Max Kills in Single Turn 7 | . . 1 . . 2 2 1 2 1 1 7 2 2 . 1 Gunslinging 1 | . . . . . 1 1 . 1 . . . . . . . Exploded 3 | . . . . . . . . . . 1 3 2 2 . . Melee 1 | . . . . . 1 1 . 1 . 1 1 1 1 . . Uniques/NPCs Destroyed . | . . . . . . . . . . . . . . . . Combat | -11 -10 -10 -10 -9 -8 -8 -8 -8 -7 -7 -7 -6 -6 -6 -6 -------- Run | Yrd Mat Min Exi Min Mat Gar Mat Gar Fac Gar Fac Fac Gar Fac Gar Hostile Shots Fired 1469 | . . 56 22 7 120 66 44 119 5 86 293 155 255 . 241 Missed 392 | . . 13 7 4 26 21 6 25 2 20 87 47 68 . 66 Damage Taken 16947 | . . 514 281 24 1408 658 663 1353 107 1093 3257 2107 3648 . 1834 Core 1816 | . . 77 108 15 181 12 34 82 . 59 389 288 292 . 279 Absorbed by Shields . | . . . . . . . . . . . . . . . . Reduced by Siege Mode 19 | . . . . . . . . . . . 19 . . . . Ignored by Resistances 149 | . . . . . . . . . 37 . . 52 60 . . Regen/Repaired (Parts) 453 | . . . . . 237 . 216 . . . . . . . . Core Remaining (%) 49 | 100 . . . 20 . . . 43 . . 36 . . . . Volleys Fired 538 | . . 31 1 . 71 33 33 58 12 76 102 53 45 . 23 Largest 4 | . . 2 2 . 4 4 4 4 1 3 4 3 4 . 4 Hottest 320 | . . 70 70 . 102 104 98 283 81 243 320 119 209 . 297 Shots Fired 1515 | . . 62 2 . 277 113 130 185 12 121 296 83 158 . 76 Gun 1143 | . . 62 2 . 277 113 130 138 . 40 206 11 128 . 36 Cannon 304 | . . . . . . . . 47 12 81 84 12 28 . 40 Launcher 68 | . . . . . . . . . . . 6 60 2 . . Special . | . . . . . . . . . . . . . . . . Kinetic 869 | . . 31 1 . 277 113 130 151 . . . . 127 . 39 Thermal 378 | . . 31 1 . . . . 14 . 88 186 . 23 . 35 Explosive 26 | . . . . . . . . . . . 6 18 2 . . Electromagnetic 242 | . . . . . . . . 20 12 33 104 65 6 . 2 Robot Hit Streak 21 | . . 21 . . 19 9 11 9 5 19 21 9 12 . 15 Robot Miss Streak 9 | . . 2 . . 3 4 7 9 1 4 5 4 6 . 6 Penetration Max 1 | . . . . . . . . . . . . . 1 . . Secondary Targets 21 | . . 2 . . 2 7 2 3 . . 2 . 3 . . Max Gunslinging Chain 2 | . . 1 . . 1 2 1 1 . . 1 . 1 . . Shots Hit Robots 1021 | . . 50 . . 200 61 77 100 9 93 221 50 119 . 41 Core Hits 515 | . . 13 . . 70 32 35 45 5 43 146 52 60 . 14 Critical Kills 9 | . . . . . 1 . 1 . . 2 . . 2 . 3 Critical Parts Destroyed 8 | . . . . . 2 1 . . . . . . 5 . . Critical Strikes 40 | . . 2 . . 8 1 1 . . 3 6 2 11 . 6 Burn 5 | . . 2 . . . . . . . 1 1 . . . 1 Meltdown 2 | . . . . . . . . . . 2 . . . . . Destroy 15 | . . . . . 3 1 1 . . . . . 7 . 3 Blast 4 | . . . . . . . . . . . . . 2 . 2 Corrupt 1 | . . . . . . . . . . . 1 . . . . Sever 13 | . . . . . 5 . . . . . 4 2 2 . . Melee Attacks 74 | . . . . . 15 5 . 3 . . 22 5 24 . . Impact . | . . . . . . . . . . . . . . . . Slashing 74 | . . . . . 15 5 . 3 . . 22 5 24 . . Piercing . | . . . . . . . . . . . . . . . . Sneak Attacks 9 | . . . . . 4 2 . . . . 2 1 . . . Combat Hostiles 2 | . . . . . . 2 . . . . . . . . . Follow-up Attacks . | . . . . . . . . . . . . . . . . Damage Inflicted 27774 | . . 640 . . 3950 1266 1447 1999 397 2769 6965 3651 3529 . 1161 Guns 13737 | . . 640 . . 3037 1044 1376 1402 . 582 3144 98 1937 . 477 Cannons 5828 | . . . . . . . . 582 351 1970 1472 220 549 . 684 Explosions 4879 | . . . . . . . 71 . 46 207 1323 3086 146 . . Melee 3281 | . . . . . 898 222 . . . . 1017 247 897 . . Ramming 49 | . . . . . 15 . . 15 . 10 9 . . . . Kinetic 9698 | . . 307 . . 3037 1044 1376 1417 . . . . 1886 . 631 Thermal 7908 | . . 333 . . . . . 274 46 2069 3855 345 480 . 506 Explosive 1785 | . . . . . . . 71 . . . 650 918 146 . . Electromagnetic 5053 | . . . . . . . . 293 351 690 1434 2141 120 . 24 Impact . | . . . . . . . . . . . . . . . . Slashing 3281 | . . . . . 898 222 . . . . 1017 247 897 . . Piercing . | . . . . . . . . . . . . . . . . Highest Corruption 8 | . . . 1 1 1 2 2 5 2 2 8 1 1 1 2 Average Corruption 2 | . . . 1 1 1 1 1 2 2 2 3 1 1 1 1 Corruption Purged 8 | . . . . . . . 3 . . . 4 . . . 1 Corruption Blocked . | . . . . . . . . . . . . . . . . Effects 174 | . . . . 2 5 12 2 25 3 11 100 . 10 . 4 Message Errors 41 | . . . . . 1 1 1 5 2 4 25 . 1 . 1 Matter Fused 41 | . . . . 1 1 3 . 6 . 2 23 . 4 . 1 Heat Flow Errors 19 | . . . . . 1 4 . 2 . 1 9 . 2 . . Energy Discharges 23 | . . . . 1 . 2 . 5 1 3 10 . 1 . . Parts Rejected 1 | . . . . . . . . . . . 1 . . . . Parts Fused 1 | . . . . . . . . . . . 1 . . . . Data Loss (minor) 24 | . . . . . 1 1 . 3 . . 18 . 1 . . Data Loss (major) 7 | . . . . . . 1 . 1 . . 4 . . . 1 Misfires 5 | . . . . . . . 1 1 . . 3 . . . . Alerts 5 | . . . . . . . . 2 . . 3 . . . . Weapon Failures 7 | . . . . . 1 . . . . 1 3 . 1 . 1 Overload Shots . | . . . . . . . . . . . . . . . . Overflow Damage 481 | . . . . . . . . 21 23 5 204 144 41 . 43 Projectiles 128 | . . . . . . . . 21 23 5 20 . 16 . 43 Explosions 120 | . . . . . . . . . . . 40 80 . . . Melee 233 | . . . . . . . . . . . 144 64 25 . . Knockbacks 10 | . . . . . 1 . . . . . . . 6 . 3 Impact 1 | . . . . . 1 . . . . . . . . . . Kinetic 9 | . . . . . . . . . . . . . 6 . 3 Secondary . | . . . . . . . . . . . . . . . . Self-Inflicted Damage 482 | . . . . . . . 80 . . 54 55 236 57 . . Shots 13 | . . . . . . . 1 . . 1 1 8 2 . . Rammed 13 | . . . . . 1 . 1 6 . 3 2 . . . . Targets Rammed 16 | . . . . . 2 . 1 7 . 4 2 . . . . Kicked . | . . . . . . . . . . . . . . . . Crushed 3 | . . . . . 1 . . 1 . 1 . . . . . Highest Temperature 450 | . . 273 9 . 328 324 331 450 . 234 223 33 199 . 399 Average Temperature 96 | . . 98 6 . 94 113 93 118 . 54 47 11 109 . 139 Received Heat Transfer 4602 | . . 264 . . 549 207 360 510 . 351 615 321 1098 . 327 Effects 18 | . . . . . 1 1 1 13 . . . . . . 2 Shutdowns 1 | . . . . . . . . 1 . . . . . . . Energy Bleed 6 | . . . . . 1 1 . 4 . . . . . . . Interference 9 | . . . . . . . 1 6 . . . . . . 2 Short Circuit 2 | . . . . . . . . 2 . . . . . . . Siege Activations 2 | . . . . . . . . . . . 2 . . . . Total Turns 26 | . . . . . . . . . . . 26 . . . . Longest Duration 20 | . . . . . . . . . . . 20 . . . . Robots Corrupted 10 | . . . . . . . . . . . 2 8 . . . Combat Hostiles 10 | . . . . . . . . . . . 2 8 . . . Parts Fried 32 | . . . . . . . . 3 3 . 10 16 . . . Impact Corruptions . | . . . . . . . . . . . . . . . . Robots Melted 5 | . . . . . . . . . . 2 3 . . . . Combat Hostiles 3 | . . . . . . . . . . . 3 . . . . Parts Melted 43 | . . 4 . . . 1 . . . 11 20 1 3 . 3 Heat Transferred 14461 | . . 1110 . . . . . 324 . 3680 7361 350 807 . 829 Parts Sabotaged . | . . . . . . . . . . . . . . . . Parts Stolen . | . . . . . . . . . . . . . . . . Parts Stripped . | . . . . . . . . . . . . . . . . Power Chain Reactions 17 | . . . . . . . . . 1 2 3 11 . . . Alert | -11 -10 -10 -10 -9 -8 -8 -8 -8 -7 -7 -7 -6 -6 -6 -6 ------- Run | Yrd Mat Min Exi Min Mat Gar Mat Gar Fac Gar Fac Fac Gar Fac Gar Peak Influence 1436 | . 36 203 . . 340 496 447 1335 876 988 1382 939 1436 753 592 Initial 753 | . . 13 . . . 21 241 193 700 473 518 676 657 753 527 Average 581 | . 15 129 . . 136 356 306 762 706 845 547 737 1010 753 546 Maximum Alert Level 4 | . . 1 . . 1 2 2 4 3 3 4 3 4 3 2 Low Security (%) 27 | 100 100 81 . 100 79 21 1 4 . . 45 . . . . Level 1 12 | . . 18 . . 20 17 93 9 . . 7 . . . . Level 2 19 | . . . . . . 61 5 29 44 24 6 35 11 . 100 Level 3 27 | . . . . . . . . 43 55 75 17 64 48 100 . Level 4 13 | . . . . . . . . 13 . . 23 . 40 . . Level 5 . | . . . . . . . . . . . . . . . . High Security . | . . . . . . . . . . . . . . . . Max Security . | . . . . . . . . . . . . . . . . Squads Dispatched 42 | . . . . . 7 . 2 . 2 . 23 8 . . . Investigation 9 | . . . . . 3 . 2 . 1 . 3 . . . . Extermination 10 | . . . . . . . . . . . 9 1 . . . Reinforcement 14 | . . . . . 2 . . . 1 . 8 3 . . . Assault 3 | . . . . . . . . . . . 3 . . . . Garrison 6 | . . . . . 2 . . . . . . 4 . . . Intercept . | . . . . . . . . . . . . . . . . Searches Triggered . | . . . . . . . . . . . . . . . . Construction Impeded 2 | . . . . . . . . . . . 2 . . . . Haulers Reinforced 3 | . . . . . . . . . . . 1 2 . . . Active Scanning Responses . | . . . . . . . . . . . . . . . . Cargo Convoy Interrupts 1 | . . . . . . . . . . . 1 . . . . Stealth | -11 -10 -10 -10 -9 -8 -8 -8 -8 -7 -7 -7 -6 -6 -6 -6 --------- Run | Yrd Mat Min Exi Min Mat Gar Mat Gar Fac Gar Fac Fac Gar Fac Gar Distress Signals 6 | . . . . . 3 . . . . . 2 1 . . . Communications Jammed . | . . . . . . . . . . . . . . . . Distress Signals . | . . . . . . . . . . . . . . . . Times Spotted 282 | . 1 8 7 3 37 16 14 28 8 21 68 28 32 . 11 Peak Tracking Total 10 | . 1 3 9 3 5 5 3 5 4 6 5 5 10 . 4 Tactical Retreats 19 | . . 1 . . 1 . . 2 . 2 3 3 7 . . Traps | -11 -10 -10 -10 -9 -8 -8 -8 -8 -7 -7 -7 -6 -6 -6 -6 ------- Run | Yrd Mat Min Exi Min Mat Gar Mat Gar Fac Gar Fac Fac Gar Fac Gar Traps Triggered 20 | . . . . . 2 . 1 9 1 1 1 . 4 . 1 Indirectly . | . . . . . . . . . . . . . . . . Trap Hack Attempts . | . . . . . . . . . . . . . . . . Triggered . | . . . . . . . . . . . . . . . . Disarmed . | . . . . . . . . . . . . . . . . Reprogrammed . | . . . . . . . . . . . . . . . . Reused . | . . . . . . . . . . . . . . . . Traps Extracted . | . . . . . . . . . . . . . . . . Installed . | . . . . . . . . . . . . . . . . Triggered 2 | . . . . . . . . . . . 2 . . . . Machines | -11 -10 -10 -10 -9 -8 -8 -8 -8 -7 -7 -7 -6 -6 -6 -6 ---------- Run | Yrd Mat Min Exi Min Mat Gar Mat Gar Fac Gar Fac Fac Gar Fac Gar Machines Disabled 41 | . . . 1 . 1 1 1 4 . 2 25 3 3 . . Max in Single Turn 23 | . . . 1 . 1 1 1 1 . 1 23 1 1 . . Garrison Access 1 | . . . . . . . . . . . 1 . . . . Garrison Relay 9 | . . . . . . 1 . 4 . 2 . . 2 . . Machines Repaired . | . . . . . . . . . . . . . . . . Machines Dismantled . | . . . . . . . . . . . . . . . . Machines Sabotaged . | . . . . . . . . . . . . . . . . Overloaded Fab Kills . | . . . . . . . . . . . . . . . . Hacking | -11 -10 -10 -10 -9 -8 -8 -8 -8 -7 -7 -7 -6 -6 -6 -6 --------- Run | Yrd Mat Min Exi Min Mat Gar Mat Gar Fac Gar Fac Fac Gar Fac Gar Machines Accessed 34 | . 1 . 1 . 8 2 4 3 4 . 7 3 . 1 . Terminals 21 | . 1 . . . 6 2 1 3 1 . 5 2 . . . Fabricators 1 | . . . . . . . . . 1 . . . . . . Repair Stations 3 | . . . . . 1 . 1 . 1 . . . . . . Recycling Units 1 | . . . . . . . . . . . 1 . . . . Scanalyzers 2 | . . . . . . . 1 . . . 1 . . . . Garrison Access 5 | . . . . . 1 . 1 . 1 . . 1 . 1 . Total Hacks 80 | . 7 . 1 . 23 4 9 8 8 . 15 4 . 1 . Successful 38 | . 5 . 1 . 10 1 6 2 4 . 6 2 . 1 . Failed 41 | . 2 . . . 12 3 3 6 4 . 9 2 . . . Catastrophic 15 | . . . . . 4 1 1 1 3 . 4 1 . . . Database Lockouts 1 | . . . . . 1 . . . . . . . . . . Manual 32 | . 5 . 1 . 16 . 3 . . . 7 . . . . Terminals 55 | . 7 . . . 18 4 3 8 2 . 10 3 . . . Fabricators 2 | . . . . . . . . . 2 . . . . . . Repair Stations 9 | . . . . . 4 . 2 . 3 . . . . . . Recycling Units 2 | . . . . . . . . . . . 2 . . . . Scanalyzers 6 | . . . . . . . 3 . . . 3 . . . . Garrison Access 5 | . . . . . 1 . 1 . 1 . . 1 . 1 . Terminal Hacks 16 | . 4 . 1 . 4 1 1 2 . . 2 1 . . . Robot Analysis 5 | . 2 . . . 2 . 1 . . . . . . . . Prototype ID Bank 1 | . 1 . . . . . . . . . . . . . . Emergency Access Points 2 | . 1 . . . . . . 1 . . . . . . . Unreport Threat 5 | . . . . . 2 . . . . . 2 1 . . . Garrison Registry 2 | . . . . . . 1 . 1 . . . . . . . Derelict Proto ID Bank 1 | . . . 1 . . . . . . . . . . . . Fabricator Hacks 2 | . . . . . . . . . 2 . . . . . . Load Schematic 1 | . . . . . . . . . 1 . . . . . . Build 1 | . . . . . . . . . 1 . . . . . . Repair Station Hacks 7 | . . . . . 4 . 2 . 1 . . . . . . Scan Component 4 | . . . . . 2 . 1 . 1 . . . . . . Repair 3 | . . . . . 2 . 1 . . . . . . . . Recycling Unit Hacks . | . . . . . . . . . . . . . . . . Scanalyzer 3 | . . . . . . . 2 . . . 1 . . . . Insert Component 2 | . . . . . . . 1 . . . 1 . . . . Analyze 1 | . . . . . . . 1 . . . . . . . . Garrison Access Hacks 5 | . . . . . 1 . 1 . 1 . . 1 . 1 . Unlock Access 5 | . . . . . 1 . 1 . 1 . . 1 . 1 . Unauthorized Hacks 5 | . 1 . . . 1 . . . . . 3 . . . . Terminals 3 | . 1 . . . 1 . . . . . 1 . . . . Botnet 3 | . 1 . . . 1 . . . . . 1 . . . . Fabricators . | . . . . . . . . . . . . . . . . Repair Stations . | . . . . . . . . . . . . . . . . Recycling Units 2 | . . . . . . . . . . . 2 . . . . Reject 1 | . . . . . . . . . . . 1 . . . . Mask 1 | . . . . . . . . . . . 1 . . . . Scanalyzers . | . . . . . . . . . . . . . . . . Garrison Access . | . . . . . . . . . . . . . . . . Data Cores Recovered . | . . . . . . . . . . . . . . . . Used . | . . . . . . . . . . . . . . . . Hacking Detections 27 | . 1 . . . 6 2 3 3 3 . 7 2 . . . Full Trace Events 12 | . . . . . 3 1 1 3 1 . 3 . . . . Feedback Events 3 | . . . . . . 1 1 1 . . . . . . . Corruption 3 | . . . . . . 1 1 1 . . . . . . . Feedback Blocked . | . . . . . . . . . . . . . . . . Robot Schematics Acquired . | . . . . . . . . . . . . . . . . Robots Built . | . . . . . . . . . . . . . . . . Authchips . | . . . . . . . . . . . . . . . . Time . | . . . . . . . . . . . . . . . . Total Robot Build Rating . | . . . . . . . . . . . . . . . . Part Schematics Acquired 1 | . . . . . . . 1 . . . . . . . . Parts Built 1 | . . . . . . . . . 1 . . . . . . Authchips 1 | . . . . . . . . . 1 . . . . . . Time 106 | . . . . . . . . . 106 . . . . . . Total Part Build Rating 6 | . . . . . . . . . 6 . . . . . . Parts Repaired 3 | . . . . . 2 . 1 . . . . . . . . Time 126 | . . . . . 70 . 56 . . . . . . . . Parts Recycled . | . . . . . . . . . . . . . . . . Recycled Matter . | . . . . . . . . . . . . . . . . Retrieved Matter . | . . . . . . . . . . . . . . . . Retrieved Components . | . . . . . . . . . . . . . . . . Parts Scanalyzed 2 | . . . . . . . 1 . . . 1 . . . . Part Schematics Acquired 1 | . . . . . . . 1 . . . . . . . . Parts Damaged . | . . . . . . . . . . . . . . . . Bothacking | -11 -10 -10 -10 -9 -8 -8 -8 -8 -7 -7 -7 -6 -6 -6 -6 ------------ Run | Yrd Mat Min Exi Min Mat Gar Mat Gar Fac Gar Fac Fac Gar Fac Gar Used RIF Installer 4 | . . . . . . 1 . 1 . . . . 1 . 1 Hotswap 1 | . . . . . . . . . . . . . . . 1 Watcher Feeds 1 | . . . . . . . . 1 . . . . . . . Program Shield 1 | . . . . . . . . . . . . . 1 . . Robots Hacked . | . . . . . . . . . . . . . . . . Non-combat . | . . . . . . . . . . . . . . . . Combat . | . . . . . . . . . . . . . . . . Robot Hacks Applied . | . . . . . . . . . . . . . . . . Relay Couplers Released 43 | . . . . . . 3 . 17 . 9 7 . 7 . . Machine Destruction 39 | . . . . . . 3 . 17 . 9 3 . 7 . . Programmers 4 | . . . . . . . . . . . 4 . . . . Attached 1 | . . . . . . . . . 1 . . . . . . Fabnet Peak Effective % . | . . . . . . . . . . . . . . . . Robots Rewired 3 | . . . . . . . . 3 . . . . . . . Allies Hacked . | . . . . . . . . . . . . . . . . Hacks Repelled . | . . . . . . . . . . . . . . . . Allies | -11 -10 -10 -10 -9 -8 -8 -8 -8 -7 -7 -7 -6 -6 -6 -6 -------- Run | Yrd Mat Min Exi Min Mat Gar Mat Gar Fac Gar Fac Fac Gar Fac Gar Total Allies 3 | . . . . . . . . 3 . . . . . . . Largest Group 3 | . . . . . . . . 3 3 2 . . . . . Highest-Rated Group 72 | . . . . . . . . 72 72 48 . . . . . Highest-Rated Ally 24 | . . . . . . . . 24 24 24 . . . . . Total Orders . | . . . . . . . . . . . . . . . . Ally Attacks 27 | . . . . . . . . 5 20 2 . . . . . Total Damage 678 | . . . . . . . . 139 437 102 . . . . . Kills 7 | . . . . . . . . 2 4 1 . . . . . Allies Corrupted . | . . . . . . . . . . . . . . . . Allies Melted . | . . . . . . . . . . . . . . . . Intel | -11 -10 -10 -10 -9 -8 -8 -8 -8 -7 -7 -7 -6 -6 -6 -6 ------- Run | Yrd Mat Min Exi Min Mat Gar Mat Gar Fac Gar Fac Fac Gar Fac Gar Robot Analysis Total 5 | . 2 . . . 2 . 1 . . . . . . . . Derelict Logs Recovered 1 | . . . . 1 . . . . . . . . . . . Drone Launches . | . . . . . . . . . . . . . . . . Drone Recoveries . | . . . . . . . . . . . . . . . . Exploration | -11 -10 -10 -10 -9 -8 -8 -8 -8 -7 -7 -7 -6 -6 -6 -6 ------------- Run | Yrd Mat Min Exi Min Mat Gar Mat Gar Fac Gar Fac Fac Gar Fac Gar Turns Passed 16161 | 77 151 473 395 60 1304 857 879 2072 726 1182 5090 687 1627 49 532 Spaces Moved 4984 | 45 90 214 249 92 652 374 254 702 257 372 1052 151 378 12 90 Core 58 | 4 . . 9 23 9 . . . . . . . . . 13 Treads 4627 | 41 90 214 240 . 413 374 254 702 257 372 1052 151 378 12 77 Legs . | . . . . . . . . . . . . . . . . Wheels 55 | . . . . . 55 . . . . . . . . . . Hover 153 | . . . . 69 84 . . . . . . . . . . Flight 91 | . . . . . 91 . . . . . . . . . . Fastest Speed 32 | 50 160 160 50 50 32 160 240 240 245 160 320 320 320 405 50 Average Speed 242 | 150 160 160 156 57 124 185 240 242 245 242 320 320 367 405 482 Slowest Speed 3000 | 160 160 160 160 60 250 240 240 400 245 320 320 320 410 405 3000 Overloaded Moves . | . . . . . . . . . . . . . . . . Propulsion Burnouts . | . . . . . . . . . . . . . . . . Robots Hopped 1 | . . . . . 1 . . . . . . . . . . Cave-ins Triggered . | . . . . . . . . . . . . . . . . Exploration Rate (%) 30 | 4 19 38 60 29 57 41 26 78 12 36 29 4 37 1 24 Regions Visited 15 Branch Regions 3 Pre-discovered Areas . | . . . . . . . . . . . . . . . . Known Exits Taken 6 | . . . . 1 1 . 1 . 1 . . 1 . 1 . Unknown Exits Taken 5 | 1 1 1 1 . . . . . . . 1 . . . . Scrap Searched 2 | . . 1 . 1 . . . . . . . . . . . Spaces Dug 1 | . . . . . . . . 1 . . . . . . . Terrain Destroyed 198 | . . . . . 5 . 42 1 5 7 66 49 14 . 9 Melee 1 | . . . . . . . . 1 . . . . . . . Projectile 25 | . . . . . 5 . . . . 3 1 . 7 . 9 AOE 172 | . . . . . . . 42 . 5 4 65 49 7 . . Terrain Rammed . | . . . . . . . . . . . . . . . . Walls Destroyed . | . . . . . . . . . . . . . . . . Machines Disabled . | . . . . . . . . . . . . . . . . Actions | -11 -10 -10 -10 -9 -8 -8 -8 -8 -7 -7 -7 -6 -6 -6 -6 --------- Run | Yrd Mat Min Exi Min Mat Gar Mat Gar Fac Gar Fac Fac Gar Fac Gar Total 7891 | 52 96 283 255 98 949 456 445 938 343 530 2507 260 525 12 142 Wait 1780 | . . 34 . . 140 11 131 90 54 37 1245 32 1 . 5 Move 4970 | 44 89 213 248 91 650 373 253 701 257 371 1051 151 376 12 90 Hop 1 | . . . . . 1 . . . . . . . . . . Pick Up 149 | 3 4 3 1 1 11 9 2 12 6 25 25 4 38 . 5 Fast Attach 72 | 5 1 . . 4 23 7 7 3 1 3 11 . 5 . 2 Attach 71 | . 1 . . . 8 2 1 . 4 1 14 12 18 . 10 Detach 6 | . . . . . 3 . 1 . 1 . . . . . 1 Swap 58 | . 1 1 . . 7 6 4 11 2 . 13 3 5 . 5 Drop 114 | . . 1 5 2 18 10 12 17 6 11 20 . 11 . 1 Fire 538 | . . 31 1 . 71 33 33 58 12 76 102 53 45 . 23 Melee 74 | . . . . . 15 5 . 3 . . 22 5 24 . . Ram . | . . . . . . . . . . . . . . . . Kick . | . . . . . . . . . . . . . . . . Crush 16 | . . . . . 2 . 1 7 . 4 2 . . . . Escape Stasis 18 | . . . . . . . . 12 . 2 2 . 2 . . Rewire 24 | . . . . . . . . 24 . . . . . . . Trap . | . . . . . . . . . . . . . . . . Miscellaneous . | . . . . . . . . . . . . . . . . Route ------- -11/Scrapyard -10/Materials -10/Mines -10/Exiles -9/Mines -8/Materials (discovered 2 exits: *Fac / Gar) -8/Garrison (discovered 3 exits: *Mat x3) -8/Materials -8/Garrison (discovered 4 exits: *Fac x3 / [*Mat]) -7/Factory -7/Garrison -7/Factory -6/Factory -6/Garrison -6/Factory -6/Garrison History --------- Turn | Location | Event 10 | -11/Scrapyard | Discovered new exit (range 16) 78 | -11/Scrapyard | Entered Materials 125 | -10/Materials | Discovered new exit (range 11) 229 | -10/Materials | Entered Mines 306 | -10/Mines | Build established: Mutant 680 | -10/Mines | Deemed a non-threat by the Exiles lab entrance 680 | -10/Mines | Discovered new exit (range 5) 702 | -10/Mines | Entered Exiles 742 | -10/Exiles | Met 8R-AWN 770 | -10/Exiles | Met EX-HEX 826 | -10/Exiles | Met EX-BIN 858 | -10/Exiles | Aligned with FarCom system 859 | -10/Exiles | Given EX-Vault access code 896 | -10/Exiles | Opened EX-Vault 909 | -10/Exiles | Found Longsword +1 986 | -10/Exiles | Warned to stay clear of 0b10 Research branches 1030 | -10/Exiles | Met EX-DEC 1051 | -10/Exiles | Attacked by the Exiles 1093 | -10/Exiles | Core integrity fell below 50% 1093 | -10/Exiles | Discovered new exit (range 10) 1097 | -10/Exiles | Left Exiles lab with Longsword +1 1097 | -10/Exiles | Entered Mines 1100 | -9/Mines | Learned 4 Materials zone layouts 1107 | -9/Mines | A weapon hastily lodged in a ceiling crevice suddenly fell to the ground 1124 | -9/Mines | Lost 5 parts (1p1n1u2w) 1144 | -9/Mines | Found a damaged Exp. Sensor Array with a note attached 1148 | -9/Mines | Found Prototype Device 1148 | -9/Mines | Identified Exp. Sensor Array 1152 | -9/Mines | Discovered new exit (range 8) 1156 | -9/Mines | Identified exit to Materials 1157 | -9/Mines | Entered Materials 1157 | -8/Materials | Evolved 4 slots: Utility x2, Weapon x2 1158 | -8/Materials | Identified exit to Factory 1760 | -8/Materials | Lost 3 parts (1p2w) 1999 | -8/Materials | Repaired Hvy. Battle Rifle 2027 | -8/Materials | Repaired Lgt. Treads 2073 | -8/Materials | Central database locked down 2095 | -8/Materials | Build established: Gunner 2343 | -8/Materials | Garrison activated, responded to threat 2461 | -8/Materials | Identified exit to Garrison 2461 | -8/Materials | Entered Garrison 2535 | -8/Garrison | Triggered checkpoint 2574 | -8/Garrison | Garrison Relay disabled 2637 | -8/Garrison | Triggered checkpoint 2696 | -8/Garrison | Lost 5 parts (3u2w) 2707 | -8/Garrison | Build established: Scavenger-Tank 2789 | -8/Garrison | Triggered checkpoint 2812 | -8/Garrison | Discovered new exit (range 68) 2812 | -8/Garrison | Discovered new exit (range 44) 2812 | -8/Garrison | Discovered new exit (range 18) 3214 | -8/Garrison | Installed Relay Interface Framework 3318 | -8/Garrison | Entered Materials 3754 | -8/Materials | Build established: Tank 4169 | -8/Materials | Repaired Lyr. Heavy Armor Plating 4190 | -8/Materials | Identified exit to Garrison 4197 | -8/Materials | Entered Garrison 4271 | -8/Garrison | Triggered checkpoint 4397 | -8/Garrison | Garrison Relay disabled 4475 | -8/Garrison | Build established: Scavenger-Tank 4585 | -8/Garrison | Triggered checkpoint 4715 | -8/Garrison | Triggered checkpoint 4749 | -8/Garrison | Garrison Relay disabled 4820 | -8/Garrison | Discovered exit to Factory (range 12) 5043 | -8/Garrison | Triggered checkpoint 5068 | -8/Garrison | Expanded RIF knowledge: Watcher Feeds 5386 | -8/Garrison | Core integrity fell below 50% 5461 | -8/Garrison | Triggered checkpoint 5498 | -8/Garrison | Spotted B-75 Beast 5589 | -8/Garrison | Destroyed B-75 Beast 5830 | -8/Garrison | Garrison Relay disabled 5847 | -8/Garrison | Triggered checkpoint 5868 | -8/Garrison | Discovered new exit (range 6) 6014 | -8/Garrison | Build established: Tank 6117 | -8/Garrison | Discovered exit to Factory (range 9) 6135 | -8/Garrison | Triggered checkpoint 6165 | -8/Garrison | Garrison Relay disabled 6189 | -8/Garrison | Discovered exit to Factory (range 63) 6189 | -8/Garrison | Discovered exit to Factory (range 23) 6189 | -8/Garrison | Discovered exit to Factory (range 25) 6189 | -8/Garrison | Discovered new exit (range 51) 6269 | -8/Garrison | Entered Factory 6269 | -7/Factory | Accompanied by 3 allies 6269 | -7/Factory | Evolved 2 slots: Utility x2 6662 | -7/Factory | Fabricated Lyr. Heavy Armor Plating? 6979 | -7/Factory | Build established: Scavenger-Tank 6995 | -7/Factory | Identified exit to Garrison 6995 | -7/Factory | Entered Garrison 6995 | -7/Garrison | Accompanied by 2 allies 7087 | -7/Garrison | Triggered checkpoint 7103 | -7/Garrison | Heavy support dispatched to Factory 7410 | -7/Garrison | Garrison Relay disabled 7425 | -7/Garrison | Heavy support dispatched to Factory 7441 | -7/Garrison | Triggered checkpoint 7469 | -7/Garrison | Garrison Relay disabled 7482 | -7/Garrison | Heavy support dispatched to Factory 7494 | -7/Garrison | Build established: Scavenger-Mutant 7898 | -7/Garrison | Discovered new exit (range 13) 7975 | -7/Garrison | Build established: Hauler-Mutant 8126 | -7/Garrison | Heavy support dispatched to Factory 8177 | -7/Garrison | Entered Factory 8651 | -7/Factory | Build established: Hauler-Tank 9713 | -7/Factory | Cargo convoy interrupted 11777 | -7/Factory | First assault squad dispatched 11829 | -7/Factory | Discovered new exit (range 14) 11863 | -7/Factory | Core integrity fell below 50% 11904 | -7/Factory | Lost 5 parts (1n1u3w) 12265 | -7/Factory | Build established: Scavenger-Tank 13267 | -7/Factory | Entered another Factory area 13267 | -6/Factory | Evolved 2 slots: Utility x2 13364 | -6/Factory | Garrison activated, responded to threat 13417 | -6/Factory | Lost 3 parts (1p1n1w) 13684 | -6/Factory | Garrison activated, responded to threat 13715 | -6/Factory | Spotted B-75 Beast 13780 | -6/Factory | Destroyed B-75 Beast 13936 | -6/Factory | Lost 3 parts (3w) 13954 | -6/Factory | Identified exit to Garrison 13954 | -6/Factory | Entered Garrison 14144 | -6/Garrison | Triggered checkpoint 14162 | -6/Garrison | Garrison Relay disabled 14341 | -6/Garrison | Spotted B-75 Beast 14395 | -6/Garrison | Destroyed B-75 Beast 14818 | -6/Garrison | Triggered checkpoint 14818 | -6/Garrison | Triggered checkpoint 14838 | -6/Garrison | Core integrity fell below 50% 14844 | -6/Garrison | Triggered checkpoint 14923 | -6/Garrison | Lost 7 parts (1n2u4w) 14929 | -6/Garrison | Destroyed 12 combat bots 15141 | -6/Garrison | Build established: Scavenger-Gunner 15250 | -6/Garrison | Triggered checkpoint 15277 | -6/Garrison | Discovered new exit (range 10) 15370 | -6/Garrison | Triggered checkpoint 15459 | -6/Garrison | Expanded RIF knowledge: Program Shield 15491 | -6/Garrison | Garrison Relay disabled 15581 | -6/Garrison | Entered Factory 15630 | -6/Factory | Identified exit to Garrison 15630 | -6/Factory | Entered Garrison 15729 | -6/Garrison | Lost 6 parts (1p1n1u3w) 15773 | -6/Garrison | Expanded RIF knowledge: Hotswap 16007 | -6/Garrison | Spotted B-75 Beast 16010 | -6/Garrison | Triggered checkpoint 16068 | -6/Garrison | Destroyed B-75 Beast 16096 | -6/Garrison | Lost 4 parts (1p2n1u) 16124 | -6/Garrison | Core integrity fell below 20% 16157 | -6/Garrison | Released all parts (9) 16162 | -6/Garrison | Destroyed by Y-54 Guardian with Gatling Laser Last Messages --------------- 16134_ Slug penetrates H-66 Slayer. 16134_ H-66 Slayer destroyed. 16135_ H-66 Slayer Gauss Rifle blasted off. 16135_ H-66 Slayer knocked back. 16138_ Adv. Heat Sink destroyed. 16140_ Penetrated by Slug. 16140_ Hvy. Laser destroyed. 16141_ System corrupted: Hardcell Cannon jammed. 16141_ Destroyed Phase Shifter. 16141_ H-66 Slayer destroyed. 16156_ Hardcell Cannon destroyed. 16157_ Released Adv. Heat Sink. 16157_ Released Adv. Target Analyzer. 16157_ Released Cargo Storage Unit. 16157_ Released Graphene Brace. 16157_ Released Adv. Target Analyzer. 16157_ Released Hardcell Cannon. 16157_ Released Imp. Deuterium Engine. 16157_ Released Imp. Light Cannon. 16157_ Released Flak Gun. Map ----- +----------------------------------------------------+ | ?????????????????????????????????????????????????? | | ?????????????????????????????????????????????????? | | ?????????????????????????????????????????????????? | | ?????????????????????????????????????????????????? | | ?????????????????????????????????????????????????? | | ?????????????????????????????????????????????????? | | ?????????????????????????????????????????????????? | | ?????????????????????????????????????????????????? | | ?????????????????????????????????????????????????? | | ?????????????????????????????????????????????????? | | ?????????????????????????????????????????????????? | | ?????????????????????????????????????????????????? | | ?????????????????????????????????????????????????? | | ???????????????????????###???????????????????????? | | ???????????????????????# ???????????????????????? | | ???????????????????????# ???????????????????????? | | ???????????????????????# ???????????????????????? | | ???????????????????????# #??????????????????????? | | ???????????????????????# #??????????????????????? | | ???????????????????????# #??????????????????????? | | ???????????????????????# #??????????????????????? | | ???????????????????????# #??????????????????????? | | ???????????????????????# #??????????????????????? | | ???????????????????????# #??????????????????????? | | ???????????????##??????# #??????????????????????? | | ????????????#### #""""## @##?????????????????????? | | ????????????# #?????????????????????? | | ??????????? #?????????????????????? | | ??????????? #?????????????????????? | | ???????????## ## ## #?????????????????????? | | ????????????# #; ## ###???????????????????? | | ????????????" % #???????????????????? | | ????????????" * #???????????????????? | | ????????????" %%! %[!! #???????????????????? | | ????????????" % [!!|C#???????????????????? | | ????????????# ## #]/=[###???????????????????? | | ?????????????% ??# = ]![!![#########????????????? | | ????????????# [ !%* [!!!!*| #????????????? | | ????????????# % [ [ [!!Y[% #????????????? | | ????????????# % ][%##%#### #????????????? | | ????????????## %##""""## ;#?# #?# #????????????? | | ?????????????#?????????# ?? #?# #????????????? | | ???????????????????????# ??? ?# #????????????? | | ???????????????????????# #???### #????????????? | | ???????????????????????# ##?????# #????????????? | | ???????????????????????# ???????# #????????????? | | ???????????????????????# ???????# #????????????? | | ???????????????????????# #####T## ############## | | ???????????????????????+ # | | ???????????????????????#% # | +----------------------------------------------------+ Best States ------------- Heat Dissipation 88 Coolant Potential 80 Energy Generation 18 Energy Capacity 510 Matter Stores 300 Matter Capacity 300 Sight Range 18 Robot Scan Range 20 Terrain Scan Density 10 Armor Coverage 825 Resistance: KI 25 Resistance: TH 15 Weapon Cycling 30 Evasion (%) 63 Targeting Accuracy 10 Target Analysis 12 Recoil Reduction 2 Matter Filtering 30 Relay Coupler Types 1 Relay Coupler Value 23 Authchip Count 1 Item Schematics ----------------- Lyr. Heavy Armor Plating | -8/Materials | Scanalyzed Robot Schematics ------------------ None Fabricated ------------ Lyr. Heavy Armor Plating | x1 | -7/Factory | Authchip Alien Tech Used ----------------- None Achievements -------------- None Challenges ------------ None Game ------ Seed EnergySapperModule Manual? 0 Play Time 01:29:36 Cumulative 194.7 hours Start 2024.04.14 @ 07:49:25 End 2024.04.14 @ 16:34:23 Sessions 3 Manual Loads 0 Difficulty Rogue Special Mode None Game No. 155 Rogue 155 Adventurer 0 Explorer 0 Win Type - Total 4 Types 4/0/0/0/0/0/0/0/0 Lore% 69 Gallery% 77 Achievement% 64 Wizard Run 0 Options --------- Layout 2 ASCII 1 Keyboard 0 Movement Mouse Keybinds 0 Fullscreen 2 Font 24/Smallcaps Map View 50x44 Zoom Use 0% Tactical HUD 1 Map Filters NONE Filters NONE Steam 1 RUN: 47045d12-925d-41a2-9540-7a4c583e8101